[Event "*** Titled Tuesday 3|2 Blitz"]
[Site "Chess.com"]
[Date "2016.02.02"]
[Round "3"]
[White "pedromartinez91"]
[Black "ethylalcohol"]
[Result "1/2-1/2"]
[WhiteElo "1976"]
[BlackElo "1739"]
[TimeControl "180+2"]
[EndTime "17:35:38 PST"]
[Termination "Game drawn by repetition"]

1. e4 {[%clk 0:02:55.1]} 1... e5 {[%clk 0:02:59.2]} 2. Nf3 {[%clk 0:02:55.8]}
2... Nc6 {[%clk 0:03:00.3]} 3. Bb5 {[%clk 0:02:56.5]} 3... Nf6 {[%clk
0:03:00.7]} 4. O-O {[%clk 0:02:56.6]} 4... Nxe4 {[%clk 0:03:01.5]} 5. Re1 {[%clk
0:02:57.1]} 5... Nd6 {[%clk 0:02:57]} 6. Nxe5 {[%clk 0:02:56]} 6... Be7 {[%clk
0:02:54.7]} 7. Nxc6 {[%clk 0:02:54.6]} 7... dxc6 {[%clk 0:02:54.9]} 8. Bf1
{[%clk 0:02:55.3]} 8... O-O {[%clk 0:02:55.2]} 9. d4 {[%clk 0:02:56.6]} 9... Nf5
{[%clk 0:02:54.5]} 10. c3 {[%clk 0:02:57.1]} 10... Be6 {[%clk 0:02:53.4]} 11.
Bf4 {[%clk 0:02:57.4]} 11... c5 {[%clk 0:02:51.5]} 12. dxc5 {[%clk 0:02:54.8]}
12... Bxc5 {[%clk 0:02:32.2]} 13. Qxd8 {[%clk 0:02:54.2]} 13... Rfxd8 {[%clk
0:02:32.9]} 14. Bxc7 {[%clk 0:02:54.3]} 14... Rd7 {[%clk 0:02:30.6]} 15. Bf4
{[%clk 0:02:54.1]} 15... Rad8 {[%clk 0:02:27.9]} 16. b4 {[%clk 0:02:51.4]} 16...
Bb6 {[%clk 0:02:25]} 17. Na3 {[%clk 0:02:48.1]} 17... a5 {[%clk 0:02:10.8]} 18.
Nc4 {[%clk 0:02:37.5]} 18... Bxc4 {[%clk 0:02:04.4]} 19. Bxc4 {[%clk 0:02:36.1]}
19... axb4 {[%clk 0:02:05.4]} 20. cxb4 {[%clk 0:02:36.7]} 20... Rd4 {[%clk
0:02:01]} 21. Bg5 {[%clk 0:02:20.3]} 21... Rf8 {[%clk 0:01:53.2]} 22. Bb3 {[%clk
0:02:13.4]} 22... Rxb4 {[%clk 0:01:51.5]} 23. Rad1 {[%clk 0:02:06.5]} 23... Rg4
{[%clk 0:01:48]} 24. Be7 {[%clk 0:01:53]} 24... Rc8 {[%clk 0:01:21.7]} 25. Rc1
{[%clk 0:01:33.3]} 25... Rxc1 {[%clk 0:01:17.8]} 26. Rxc1 {[%clk 0:01:33.4]}
26... Nxe7 {[%clk 0:01:18.5]} 27. Re1 {[%clk 0:01:21.5]} 27... Kf8 {[%clk
0:01:18]} 28. Kf1 {[%clk 0:01:21.5]} 28... Rf4 {[%clk 0:01:16.4]} 29. f3 {[%clk
0:01:21.7]} 29... Nc6 {[%clk 0:01:16.3]} 30. Rd1 {[%clk 0:01:19.4]} 30... Rd4
{[%clk 0:01:14.8]} 31. Rc1 {[%clk 0:01:18.7]} 31... Rf4 {[%clk 0:01:04]} 32. Bd5
{[%clk 0:01:11.4]} 32... Rf6 {[%clk 0:00:58.9]} 33. Rb1 {[%clk 0:01:08.8]} 33...
Nd4 {[%clk 0:00:56.6]} 34. Bxb7 {[%clk 0:01:08.6]} 34... g6 {[%clk 0:00:52.8]}
35. a4 {[%clk 0:01:03.6]} 35... Kg7 {[%clk 0:00:49]} 36. Bd5 {[%clk 0:00:51.6]}
36... Bc7 {[%clk 0:00:46.6]} 37. Rb7 {[%clk 0:00:45.6]} 37... Bxh2 {[%clk
0:00:40.6]} 38. a5 {[%clk 0:00:46.3]} 38... Rf5 {[%clk 0:00:39.9]} 39. Rd7
{[%clk 0:00:34]} 39... Nb5 {[%clk 0:00:36.5]} 40. a6 {[%clk 0:00:30.2]} 40...
Bg3 {[%clk 0:00:31.1]} 41. Ke2 {[%clk 0:00:23.8]} 41... Nd6 {[%clk 0:00:30]} 42.
Rxd6 {[%clk 0:00:09.2]} 42... Bxd6 {[%clk 0:00:26.9]} 43. a7 {[%clk 0:00:10]}
43... Re5+ {[%clk 0:00:25.7]} 44. Kf1 {[%clk 0:00:08.9]} 44... Re8 {[%clk
0:00:24.3]} 45. a8=Q {[%clk 0:00:08]} 45... Rxa8 {[%clk 0:00:24.2]} 46. Bxa8
{[%clk 0:00:09.5]} 46... f6 {[%clk 0:00:20.9]} 47. g4 {[%clk 0:00:10.7]} 47...
Kh6 {[%clk 0:00:20.5]} 48. Kg2 {[%clk 0:00:11.7]} 48... Kg5 {[%clk 0:00:18.7]}
49. Bd5 {[%clk 0:00:12.8]} 49... h6 {[%clk 0:00:17.6]} 50. Bb7 {[%clk
0:00:12.1]} 50... f5 {[%clk 0:00:16.1]} 51. gxf5 {[%clk 0:00:13]} 51... gxf5
{[%clk 0:00:16.9]} 52. Kh3 {[%clk 0:00:13.2]} 52... h5 {[%clk 0:00:13.3]} 53.
Ba8 {[%clk 0:00:14.2]} 53... h4 {[%clk 0:00:13.6]} 54. Bb7 {[%clk 0:00:15.2]}
54... Bg3 {[%clk 0:00:12.8]} 55. Ba8 {[%clk 0:00:15.9]} 55... Kf4 {[%clk
0:00:13.8]} 56. Bb7 {[%clk 0:00:16.5]} 56... Ke3 {[%clk 0:00:14.4]} 57. Ba8
{[%clk 0:00:17.1]} 57... Kf4 {[%clk 0:00:15.3]} 58. Bb7 {[%clk 0:00:17.8]} 58...
Ke3 {[%clk 0:00:16.2]} 59. Ba8 {[%clk 0:00:18.9]} 59... Kf4 {[%clk 0:00:17.4]}
60. Bb7 {[%clk 0:00:19.9]} 60... Ke3 {[%clk 0:00:18.5]} 61. Ba8 {[%clk
0:00:20.8]} 61... Kf4 {[%clk 0:00:19.6]} 62. Bb7 {[%clk 0:00:21.8]} 62... Ke3
{[%clk 0:00:20.9]} 63. Ba8 {[%clk 0:00:22.5]} 1/2-1/2

[Event "*** Titled Tuesday 3|2 Blitz"]
[Site "Chess.com"]
[Date "2016.02.02"]
[Round "3"]
[White "dsanchez1973"]
[Black "chesstatour"]
[Result "0-1"]
[WhiteElo "1963"]
[BlackElo "1965"]
[TimeControl "180+2"]
[EndTime "17:36:20 PST"]
[Termination "chesstatour won by resignation"]

1. e4 {[%clk 0:03:01.9]} 1... c6 {[%clk 0:02:59.2]} 2. d4 {[%clk 0:03:02.2]}
2... d5 {[%clk 0:03:01.1]} 3. e5 {[%clk 0:03:03.5]} 3... Bf5 {[%clk 0:03:01.4]}
4. Nf3 {[%clk 0:03:04.1]} 4... e6 {[%clk 0:03:02.6]} 5. Be2 {[%clk 0:03:05.2]}
5... c5 {[%clk 0:03:02.1]} 6. O-O {[%clk 0:03:05.4]} 6... Nc6 {[%clk 0:02:58.1]}
7. c3 {[%clk 0:03:04]} 7... Nge7 {[%clk 0:02:58.3]} 8. Be3 {[%clk 0:03:04.4]}
8... Ng6 {[%clk 0:02:56.6]} 9. Re1 {[%clk 0:03:03.7]} 9... Be7 {[%clk
0:02:57.5]} 10. Nbd2 {[%clk 0:03:04.2]} 10... O-O {[%clk 0:02:57.2]} 11. Nf1
{[%clk 0:03:05.2]} 11... cxd4 {[%clk 0:02:36.8]} 12. cxd4 {[%clk 0:03:05.4]}
12... Qb6 {[%clk 0:02:34.5]} 13. Ng3 {[%clk 0:03:03]} 13... Bg4 {[%clk
0:02:23.8]} 14. h3 {[%clk 0:03:00.4]} 14... Bxf3 {[%clk 0:02:24]} 15. Bxf3
{[%clk 0:03:00.7]} 15... Qxb2 {[%clk 0:01:58.5]} 16. Rb1 {[%clk 0:02:45.7]}
16... Qxa2 {[%clk 0:01:58.5]} 17. Rxb7 {[%clk 0:02:46.6]} 17... Rfb8 {[%clk
0:01:54.8]} 18. Rc7 {[%clk 0:02:46]} 18... Nb4 {[%clk 0:01:52.2]} 19. Bh5 {[%clk
0:02:27.8]} 19... Qa5 {[%clk 0:01:23.6]} 20. Rc1 {[%clk 0:02:02]} 20... Qb6
{[%clk 0:01:11.5]} 21. Rb1 {[%clk 0:01:59.9]} 21... a5 {[%clk 0:01:11.9]} 22.
Bxg6 {[%clk 0:01:47.6]} 22... hxg6 {[%clk 0:01:11]} 23. Qa4 {[%clk 0:01:40.4]}
23... Qb5 {[%clk 0:01:08.6]} 24. Qa3 {[%clk 0:01:09.2]} 24... Rb7 {[%clk
0:00:37.1]} 25. Bd2 {[%clk 0:01:07.2]} 25... Rab8 {[%clk 0:00:22.2]} 26. Qc3
{[%clk 0:00:59.6]} 26... Qc4 {[%clk 0:00:18.2]} 27. Ne2 {[%clk 0:00:58.2]} 27...
Qxc3 {[%clk 0:00:18.3]} 28. Nxc3 {[%clk 0:00:59.4]} 28... Rc8 {[%clk 0:00:18.6]}
29. Na4 {[%clk 0:00:54.9]} 29... Rc2 {[%clk 0:00:18.8]} 30. Bxb4 {[%clk
0:00:53.4]} 30... Rxb4 {[%clk 0:00:18.9]} 31. Ra1 {[%clk 0:00:43.7]} 31... Rxd4
{[%clk 0:00:18.4]} 32. Nb6 {[%clk 0:00:44.3]} 32... Bb4 {[%clk 0:00:18.5]} 33.
Rf1 {[%clk 0:00:37.2]} 33... Rdd2 {[%clk 0:00:19.3]} 34. Nd7 {[%clk 0:00:32.8]}
34... Ra2 {[%clk 0:00:18]} 35. Rac1 {[%clk 0:00:31.6]} 35... Rdc2 {[%clk
0:00:18.7]} 36. Rb1 {[%clk 0:00:26.6]} 36... Rab2 {[%clk 0:00:17.9]} 37. Ra1
{[%clk 0:00:26.5]} 37... d4 {[%clk 0:00:16.7]} 38. Nb8 {[%clk 0:00:19]} 38... d3
{[%clk 0:00:16]} 39. Na6 {[%clk 0:00:20.1]} 39... Bc3 {[%clk 0:00:16.3]} 40.
Rad1 {[%clk 0:00:18]} 40... d2 {[%clk 0:00:16]} 41. Nc5 {[%clk 0:00:18.3]} 41...
Bb4 {[%clk 0:00:10.6]} 42. Ne4 {[%clk 0:00:19.4]} 42... a4 {[%clk 0:00:09.4]}
43. Ra1 {[%clk 0:00:17.4]} 43... a3 {[%clk 0:00:10.2]} 44. Rfd1 {[%clk
0:00:16.3]} 44... a2 {[%clk 0:00:10.6]} 45. Kf1 {[%clk 0:00:17.5]} 45... Be7
{[%clk 0:00:06.1]} 46. Ke2 {[%clk 0:00:18.5]} 46... f6 {[%clk 0:00:07]} 47. exf6
{[%clk 0:00:19]} 47... Bxf6 {[%clk 0:00:07.6]} 48. Nxf6+ {[%clk 0:00:17.5]}
48... gxf6 {[%clk 0:00:09.5]} 49. f3 {[%clk 0:00:19.1]} 49... e5 {[%clk
0:00:10.5]} 50. Kd3 {[%clk 0:00:20]} 50... Kf7 {[%clk 0:00:11.4]} 51. Ke2 {[%clk
0:00:20.5]} 51... Ke6 {[%clk 0:00:12.8]} 52. Kd3 {[%clk 0:00:22.3]} 52... Kd5
{[%clk 0:00:14.1]} 53. g4 {[%clk 0:00:23.6]} 53... f5 {[%clk 0:00:14.5]} 54. h4
{[%clk 0:00:23.8]} 54... e4+ {[%clk 0:00:15.6]} 55. fxe4+ {[%clk 0:00:24.5]}
55... fxe4+ {[%clk 0:00:17.5]} 56. Ke3 {[%clk 0:00:25.9]} 56... Rb3+ {[%clk
0:00:18.3]} 57. Ke2 {[%clk 0:00:26.7]} 57... e3 {[%clk 0:00:19.8]} 58. h5 {[%clk
0:00:28]} 58... gxh5 {[%clk 0:00:20.3]} 59. gxh5 {[%clk 0:00:29.4]} 59... Rb4
{[%clk 0:00:19.3]} 60. Rh1 {[%clk 0:00:30.1]} 60... Rb3 {[%clk 0:00:17.9]} 61.
h6 {[%clk 0:00:31.3]} 61... Rb1 {[%clk 0:00:16.1]} 62. Rhxb1 {[%clk 0:00:31]}
62... axb1=Q {[%clk 0:00:18]} 63. Rxb1 {[%clk 0:00:31.6]} 63... Rc1 {[%clk
0:00:19.3]} 64. h7 {[%clk 0:00:31.4]} 64... d1=Q+ {[%clk 0:00:19.9]} 65. Kxe3
{[%clk 0:00:32.9]} 65... Qe1+ {[%clk 0:00:19.7]} 66. Kd3 {[%clk 0:00:33.6]}
66... Qe4+ {[%clk 0:00:18]} 67. Kd2 {[%clk 0:00:33.8]} 67... Qxb1 {[%clk
0:00:18.1]} 68. h8=Q {[%clk 0:00:34.1]} 68... Rd1+ {[%clk 0:00:16.8]} 69. Ke2
{[%clk 0:00:35.3]} 69... Qc2+ {[%clk 0:00:17.8]} 70. Kf3 {[%clk 0:00:36.3]}
70... Rd3+ {[%clk 0:00:18.8]} 71. Kg4 {[%clk 0:00:37.2]} 71... Qg2+ {[%clk
0:00:18.9]} 72. Kf5 {[%clk 0:00:38.6]} 72... Qf3+ {[%clk 0:00:19.4]} 73. Kg6
{[%clk 0:00:39.4]} 73... Qg3+ {[%clk 0:00:19.7]} 74. Kf7 {[%clk 0:00:40.1]}
74... Qf4+ {[%clk 0:00:19]} 75. Ke8 {[%clk 0:00:41.2]} 75... Re3+ {[%clk
0:00:18.9]} 76. Kd8 {[%clk 0:00:35.3]} 76... Qb8+ {[%clk 0:00:18.5]} 77. Kd7
{[%clk 0:00:35.5]} 77... Re7+ {[%clk 0:00:17.3]} 0-1

[Event "*** Titled Tuesday 3|2 Blitz"]
[Site "Chess.com"]
[Date "2016.02.02"]
[Round "4"]
[White "Er_is_geen_hoop_meer"]
[Black "chessking2151"]
[Result "0-1"]
[WhiteElo "2286"]
[BlackElo "2250"]
[TimeControl "180+2"]
[EndTime "17:42:01 PST"]
[Termination "chessking2151 won by resignation"]

1. d4 {[%clk 0:03:01.9]} 1... Nf6 {[%clk 0:03:00.6]} 2. c4 {[%clk 0:03:00]} 2...
e6 {[%clk 0:03:01.7]} 3. Nc3 {[%clk 0:03:01.1]} 3... d5 {[%clk 0:03:02.5]} 4.
cxd5 {[%clk 0:03:01.8]} 4... exd5 {[%clk 0:03:03.2]} 5. Bg5 {[%clk 0:03:03.3]}
5... Be7 {[%clk 0:03:04.3]} 6. Qc2 {[%clk 0:03:04.4]} 6... O-O {[%clk
0:03:03.3]} 7. e3 {[%clk 0:03:05.9]} 7... c6 {[%clk 0:03:04.2]} 8. Bd3 {[%clk
0:03:07]} 8... Nbd7 {[%clk 0:03:05.5]} 9. Nge2 {[%clk 0:03:08.4]} 9... Re8
{[%clk 0:03:05.8]} 10. O-O {[%clk 0:03:09.6]} 10... Nf8 {[%clk 0:03:06.8]} 11.
Rae1 {[%clk 0:03:10.6]} 11... g6 {[%clk 0:03:06.9]} 12. f3 {[%clk 0:03:11.7]}
12... Nh5 {[%clk 0:03:07.5]} 13. Bxe7 {[%clk 0:03:12.4]} 13... Qxe7 {[%clk
0:03:08.4]} 14. e4 {[%clk 0:03:13.8]} 14... Be6 {[%clk 0:03:09.8]} 15. Kh1
{[%clk 0:03:11.5]} 15... Qd7 {[%clk 0:03:08.2]} 16. b4 {[%clk 0:03:08.6]} 16...
a6 {[%clk 0:03:01.2]} 17. Na4 {[%clk 0:03:08.7]} 17... Qd6 {[%clk 0:02:46.7]}
18. Qc5 {[%clk 0:03:03.7]} 18... Qc7 {[%clk 0:02:40.3]} 19. Nb6 {[%clk
0:03:03.3]} 19... Rad8 {[%clk 0:02:36.9]} 20. a4 {[%clk 0:03:04.3]} 20... Nf6
{[%clk 0:02:33.6]} 21. b5 {[%clk 0:03:01.2]} 21... axb5 {[%clk 0:02:25.8]} 22.
axb5 {[%clk 0:03:02.1]} 22... N8d7 {[%clk 0:02:26.6]} 23. Nxd7 {[%clk
0:03:03.4]} 23... Nxd7 {[%clk 0:02:27.5]} 24. Qc2 {[%clk 0:03:03.7]} 24... Rc8
{[%clk 0:02:24.5]} 25. Rc1 {[%clk 0:03:04.1]} 25... Qd6 {[%clk 0:02:22.1]} 26.
bxc6 {[%clk 0:03:01.6]} 26... bxc6 {[%clk 0:02:13]} 27. e5 {[%clk 0:03:02.8]}
27... Qe7 {[%clk 0:02:11.8]} 28. f4 {[%clk 0:03:04.1]} 28... f5 {[%clk
0:02:10.1]} 29. exf6 {[%clk 0:03:04.5]} 29... Nxf6 {[%clk 0:02:11.1]} 30. f5
{[%clk 0:03:05.7]} 30... gxf5 {[%clk 0:02:07.1]} 31. Bxf5 {[%clk 0:03:07.6]}
31... Kh8 {[%clk 0:02:01.4]} 32. Nf4 {[%clk 0:02:59.5]} 32... Bxf5 {[%clk
0:01:47.7]} 33. Qxf5 {[%clk 0:03:01.4]} 33... Rg8 {[%clk 0:01:40.4]} 34. Rce1
{[%clk 0:03:00.1]} 34... Qg7 {[%clk 0:01:41.2]} 35. Re2 {[%clk 0:02:57.7]} 35...
Qg5 {[%clk 0:01:15]} 36. Qh3 {[%clk 0:02:53.3]} 36... Rce8 {[%clk 0:01:02.9]}
37. Ne6 {[%clk 0:02:48.8]} 37... Qg6 {[%clk 0:00:58.7]} 38. Re5 {[%clk
0:02:48.2]} 38... Ng4 {[%clk 0:00:54.5]} 39. Nf4 {[%clk 0:02:48]} 39... Nf2+
{[%clk 0:00:47.7]} 0-1

[Event "*** Titled Tuesday 3|2 Blitz"]
[Site "Chess.com"]
[Date "2016.02.02"]
[Round "4"]
[White "SenseiJulio"]
[Black "ethylalcohol"]
[Result "1-0"]
[WhiteElo "2504"]
[BlackElo "1738"]
[TimeControl "180+2"]
[EndTime "17:42:31 PST"]
[Termination "SenseiJulio won on time"]

1. e4 {[%clk 0:03:01.9]} 1... e5 {[%clk 0:02:59.2]} 2. Nf3 {[%clk 0:02:57.5]}
2... Nc6 {[%clk 0:02:58.6]} 3. g3 {[%clk 0:02:58.7]} 3... Nf6 {[%clk 0:02:56.4]}
4. d3 {[%clk 0:02:56.7]} 4... d5 {[%clk 0:02:54.7]} 5. exd5 {[%clk 0:02:56.8]}
5... Nxd5 {[%clk 0:02:56.2]} 6. Bg2 {[%clk 0:02:58.4]} 6... Bg4 {[%clk
0:02:54.9]} 7. h3 {[%clk 0:02:56.2]} 7... Bh5 {[%clk 0:02:51.7]} 8. O-O {[%clk
0:02:56.9]} 8... Be7 {[%clk 0:02:35.4]} 9. Re1 {[%clk 0:02:49.6]} 9... f6 {[%clk
0:01:49.2]} 10. g4 {[%clk 0:02:36.1]} 10... Bf7 {[%clk 0:01:46.7]} 11. d4 {[%clk
0:02:36.6]} 11... exd4 {[%clk 0:01:32.4]} 12. Nxd4 {[%clk 0:02:37.6]} 12... Nxd4
{[%clk 0:01:04.8]} 13. Qxd4 {[%clk 0:02:39.5]} 13... O-O {[%clk 0:01:05.7]} 14.
c3 {[%clk 0:02:21.3]} 14... c6 {[%clk 0:01:01.8]} 15. Nd2 {[%clk 0:02:19.5]}
15... Re8 {[%clk 0:00:59.9]} 16. Nf3 {[%clk 0:02:16.5]} 16... Qc7 {[%clk
0:00:56.9]} 17. Bd2 {[%clk 0:02:10.6]} 17... Rad8 {[%clk 0:00:45.5]} 18. Qxa7
{[%clk 0:02:11.5]} 18... Nb6 {[%clk 0:00:35.9]} 19. Bf4 {[%clk 0:01:55]} 19...
Qxf4 {[%clk 0:00:23.1]} 20. Qxb6 {[%clk 0:01:56.1]} 20... Rd3 {[%clk 0:00:12.3]}
21. Qxb7 {[%clk 0:01:49.2]} 21... Rxf3 {[%clk 0:00:02.4]} 22. Rxe7 {[%clk
0:01:49.9]} 1-0

[Event "*** Titled Tuesday 3|2 Blitz"]
[Site "Chess.com"]
[Date "2016.02.02"]
[Round "4"]
[White "dretch"]
[Black "tigra"]
[Result "1-0"]
[WhiteElo "2466"]
[BlackElo "2401"]
[TimeControl "180+2"]
[EndTime "17:43:29 PST"]
[Termination "dretch won on time"]

1. d4 {[%clk 0:03:01.9]} 1... e6 {[%clk 0:02:59.9]} 2. c4 {[%clk 0:03:02.8]}
2... b6 {[%clk 0:03:01]} 3. e4 {[%clk 0:03:03.6]} 3... Bb7 {[%clk 0:03:02.2]} 4.
Bd3 {[%clk 0:03:04.7]} 4... Nc6 {[%clk 0:03:03]} 5. Nf3 {[%clk 0:03:05.6]} 5...
Nb4 {[%clk 0:03:04.6]} 6. O-O {[%clk 0:03:06.7]} 6... Ne7 {[%clk 0:03:02.6]} 7.
Nc3 {[%clk 0:03:07.3]} 7... Nxd3 {[%clk 0:03:03]} 8. Qxd3 {[%clk 0:03:09.2]}
8... h6 {[%clk 0:03:04.5]} 9. Re1 {[%clk 0:03:06.8]} 9... g5 {[%clk 0:03:05.3]}
10. h4 {[%clk 0:02:58.7]} 10... g4 {[%clk 0:02:59.7]} 11. Nh2 {[%clk 0:02:45.3]}
11... Rg8 {[%clk 0:02:53.4]} 12. h5 {[%clk 0:02:39.4]} 12... d6 {[%clk
0:02:47.3]} 13. Qg3 {[%clk 0:02:35.5]} 13... f5 {[%clk 0:02:40.3]} 14. exf5
{[%clk 0:02:32.6]} 14... Nxf5 {[%clk 0:02:41.1]} 15. Qf4 {[%clk 0:02:31.8]}
15... Qf6 {[%clk 0:02:13.2]} 16. Nxg4 {[%clk 0:02:19.2]} 16... Qf7 {[%clk
0:01:49.7]} 17. d5 {[%clk 0:02:19.4]} 17... O-O-O {[%clk 0:01:48.6]} 18. Rxe6
{[%clk 0:02:19.3]} 18... Rg5 {[%clk 0:01:20.7]} 19. Ne4 {[%clk 0:01:46.3]} 19...
Rxh5 {[%clk 0:01:08.6]} 20. Ngf6 {[%clk 0:01:45.9]} 20... Nd4 {[%clk 0:01:08.3]}
21. Qg4 {[%clk 0:01:39.9]} 21... Rf5 {[%clk 0:00:59.2]} 22. Ng3 {[%clk
0:01:33.8]} 22... c5 {[%clk 0:00:05]} 23. Nxf5 {[%clk 0:01:32.8]} 23... Nxe6
{[%clk 0:00:05.5]} 24. Nh5 {[%clk 0:01:31.9]} 24... Kb8 {[%clk 0:00:04.5]} 25.
dxe6 {[%clk 0:01:32.5]} 25... Qxe6 {[%clk 0:00:06.1]} 26. Bf4 {[%clk 0:01:31.1]}
26... Re8 {[%clk 0:00:06.3]} 27. Rd1 {[%clk 0:01:24.9]} 27... Ka8 {[%clk
0:00:05.9]} 28. Ne3 {[%clk 0:01:23.5]} 28... Qe4 {[%clk 0:00:06.5]} 29. Nf6
{[%clk 0:01:22.7]} 1-0

[Event "*** Titled Tuesday 3|2 Blitz"]
[Site "Chess.com"]
[Date "2016.02.02"]
[Round "4"]
[White "Kanthecarowin"]
[Black "HustleStandard"]
[Result "0-1"]
[WhiteElo "2159"]
[BlackElo "2380"]
[TimeControl "180+2"]
[EndTime "17:45:00 PST"]
[Termination "HustleStandard won by resignation"]

1. d4 {[%clk 0:03:00.7]} 1... Nf6 {[%clk 0:03:00]} 2. c4 {[%clk 0:02:56.8]} 2...
g6 {[%clk 0:03:01.9]} 3. Nc3 {[%clk 0:02:57.3]} 3... Bg7 {[%clk 0:03:03.8]} 4.
e4 {[%clk 0:02:58.4]} 4... O-O {[%clk 0:03:05.1]} 5. Be2 {[%clk 0:02:59.7]} 5...
d6 {[%clk 0:03:06.1]} 6. Nf3 {[%clk 0:03:01]} 6... c5 {[%clk 0:03:04.5]} 7. Be3
{[%clk 0:03:01.6]} 7... Ng4 {[%clk 0:02:55.6]} 8. Bc1 {[%clk 0:02:57]} 8... Nc6
{[%clk 0:01:45]} 9. d5 {[%clk 0:02:45.4]} 9... Na5 {[%clk 0:01:43.1]} 10. h3
{[%clk 0:02:42.1]} 10... Nf6 {[%clk 0:01:44.5]} 11. Be3 {[%clk 0:02:42.8]} 11...
a6 {[%clk 0:01:43.1]} 12. a4 {[%clk 0:02:41.3]} 12... e5 {[%clk 0:01:35]} 13.
Nd2 {[%clk 0:02:33.3]} 13... Ne8 {[%clk 0:01:30.8]} 14. O-O {[%clk 0:02:16.2]}
14... f5 {[%clk 0:01:25.6]} 15. f4 {[%clk 0:01:53]} 15... b6 {[%clk 0:01:23.9]}
16. Nf3 {[%clk 0:01:50.3]} 16... exf4 {[%clk 0:01:10]} 17. Bxf4 {[%clk
0:01:34.6]} 17... Bxc3 {[%clk 0:01:10.4]} 18. bxc3 {[%clk 0:01:36.5]} 18... fxe4
{[%clk 0:01:11.3]} 19. Ng5 {[%clk 0:01:35.6]} 19... Rxf4 {[%clk 0:01:08.5]} 20.
Rxf4 {[%clk 0:01:33.7]} 20... Qxg5 {[%clk 0:01:07.7]} 21. Qd2 {[%clk 0:01:35.6]}
21... Qe7 {[%clk 0:00:43.6]} 22. Raf1 {[%clk 0:01:30.4]} 22... e3 {[%clk
0:00:37.4]} 23. Qd1 {[%clk 0:01:07.5]} 23... Ng7 {[%clk 0:00:31.3]} 24. g4
{[%clk 0:01:07.6]} 24... Bd7 {[%clk 0:00:31.3]} 25. R1f3 {[%clk 0:01:02.3]}
25... g5 {[%clk 0:00:25.4]} 26. Rf6 {[%clk 0:00:45.3]} 26... Ne8 {[%clk
0:00:24.4]} 27. Rf8+ {[%clk 0:00:38.2]} 27... Qxf8 {[%clk 0:00:23.6]} 28. Rxf8+
{[%clk 0:00:40.1]} 28... Kxf8 {[%clk 0:00:25.5]} 29. Qd3 {[%clk 0:00:37.9]}
29... Nf6 {[%clk 0:00:23.8]} 30. Qxe3 {[%clk 0:00:39]} 30... h6 {[%clk
0:00:24.6]} 31. h4 {[%clk 0:00:39.4]} 31... Re8 {[%clk 0:00:24.1]} 32. Qd2
{[%clk 0:00:40.4]} 32... Bxg4 {[%clk 0:00:21.1]} 33. Bxg4 {[%clk 0:00:40.1]}
33... Nxg4 {[%clk 0:00:22.7]} 34. hxg5 {[%clk 0:00:42]} 34... hxg5 {[%clk
0:00:17.4]} 35. Qxg5 {[%clk 0:00:42.9]} 35... Ne5 {[%clk 0:00:19.2]} 36. Qf6+
{[%clk 0:00:43.5]} 36... Nf7 {[%clk 0:00:19.5]} 37. Qh4 {[%clk 0:00:35.8]} 37...
Re5 {[%clk 0:00:19.5]} 38. Qg4 {[%clk 0:00:36.4]} 38... Rg5 {[%clk 0:00:18.2]}
0-1

[Event "*** Titled Tuesday 3|2 Blitz"]
[Site "Chess.com"]
[Date "2016.02.02"]
[Round "4"]
[White "AndreyOstrovskiy"]
[Black "pKiLz5Rn9b"]
[Result "0-1"]
[WhiteElo "2460"]
[BlackElo "2356"]
[TimeControl "180+2"]
[EndTime "17:45:10 PST"]
[Termination "pKiLz5Rn9b won by resignation"]

1. e4 {[%clk 0:03:01.9]} 1... e6 {[%clk 0:03:01.2]} 2. d4 {[%clk 0:03:02.6]}
2... d5 {[%clk 0:03:02.9]} 3. Nc3 {[%clk 0:03:03.7]} 3... Nf6 {[%clk 0:03:03.8]}
4. e5 {[%clk 0:03:02.4]} 4... Nfd7 {[%clk 0:03:04.8]} 5. f4 {[%clk 0:03:03.7]}
5... c5 {[%clk 0:03:05.6]} 6. Nf3 {[%clk 0:03:04.9]} 6... Nc6 {[%clk 0:03:07.1]}
7. Be3 {[%clk 0:03:05.5]} 7... a6 {[%clk 0:03:08.7]} 8. Qd2 {[%clk 0:03:04.8]}
8... b5 {[%clk 0:03:09.9]} 9. a3 {[%clk 0:03:01.7]} 9... Qb6 {[%clk 0:03:10.5]}
10. Ne2 {[%clk 0:02:55.5]} 10... a5 {[%clk 0:03:06.9]} 11. dxc5 {[%clk 0:02:54]}
11... Bxc5 {[%clk 0:03:05.6]} 12. Ned4 {[%clk 0:02:54.3]} 12... Nxd4 {[%clk
0:02:58.9]} 13. Nxd4 {[%clk 0:02:52.3]} 13... O-O {[%clk 0:02:37.4]} 14. Bd3
{[%clk 0:02:51.1]} 14... f6 {[%clk 0:01:56.6]} 15. exf6 {[%clk 0:02:42.2]} 15...
Nxf6 {[%clk 0:01:56]} 16. h3 {[%clk 0:02:28.5]} 16... Bd7 {[%clk 0:01:50.3]} 17.
c3 {[%clk 0:02:16.8]} 17... b4 {[%clk 0:01:41.1]} 18. a4 {[%clk 0:02:13.8]}
18... Rae8 {[%clk 0:01:34.8]} 19. O-O {[%clk 0:02:09.3]} 19... Qd6 {[%clk
0:00:55.2]} 20. Nb5 {[%clk 0:01:59.6]} 20... Bxe3+ {[%clk 0:00:52.3]} 21. Qxe3
{[%clk 0:02:00.2]} 21... Qb8 {[%clk 0:00:47.4]} 22. cxb4 {[%clk 0:01:43.7]}
22... axb4 {[%clk 0:00:45.9]} 23. Qd4 {[%clk 0:01:44.7]} 23... e5 {[%clk
0:00:26.2]} 24. fxe5 {[%clk 0:01:42.1]} 24... Rxe5 {[%clk 0:00:27.9]} 25. Rae1
{[%clk 0:01:34.5]} 25... Rg5 {[%clk 0:00:22.4]} 26. Qe3 {[%clk 0:01:07.4]} 26...
Rg3 {[%clk 0:00:20.3]} 27. Qe5 {[%clk 0:01:01.9]} 27... Qxe5 {[%clk 0:00:18.5]}
28. Rxe5 {[%clk 0:01:01.8]} 28... Rxd3 {[%clk 0:00:19.6]} 29. Re7 {[%clk
0:00:48.9]} 29... Bxb5 {[%clk 0:00:20.5]} 30. axb5 {[%clk 0:00:49.5]} 30... Rb8
{[%clk 0:00:18.3]} 31. Rc1 {[%clk 0:00:48.6]} 31... h6 {[%clk 0:00:11.6]} 32.
Rcc7 {[%clk 0:00:46.8]} 32... Rg3 {[%clk 0:00:11.4]} 33. Kh2 {[%clk 0:00:46.3]}
33... Rg6 {[%clk 0:00:12.2]} 34. Rb7 {[%clk 0:00:43.3]} 34... Rxb7 {[%clk
0:00:08.6]} 35. Rxb7 {[%clk 0:00:44]} 35... d4 {[%clk 0:00:10.5]} 36. Rb8+
{[%clk 0:00:43.3]} 36... Kh7 {[%clk 0:00:08.9]} 37. Rd8 {[%clk 0:00:44.2]} 37...
Rg5 {[%clk 0:00:08.9]} 38. b6 {[%clk 0:00:44.6]} 38... Rb5 {[%clk 0:00:09.7]}
39. Rd6 {[%clk 0:00:45.3]} 39... Kg6 {[%clk 0:00:07.4]} 40. Kg3 {[%clk 0:00:45]}
40... Kf7 {[%clk 0:00:08.7]} 41. Kf3 {[%clk 0:00:45.7]} 41... Ke7 {[%clk
0:00:08.9]} 42. Rc6 {[%clk 0:00:45.3]} 42... Nd7 {[%clk 0:00:09.6]} 43. Rg6
{[%clk 0:00:43.9]} 43... Ne5+ {[%clk 0:00:10.5]} 0-1